[Event "Betsys MČR v online bleskovém šachu 2021"]
[Site "Chess.com"]
[Date "2021.04.17"]
[Round "7"]
[White "Millbo64"]
[Black "Adam20032007"]
[Result "1-0"]
[WhiteElo "1996"]
[BlackElo "1711"]
[TimeControl "180+1"]
[EndTime "10:11:25 PDT"]
[Termination "Uživatel Millbo64 zvítězil po vzdání soupeře"]

1. e4 {[%clk 0:03:00.9]} 1... e6 {[%clk 0:02:00.2]} 2. f4 {[%clk 0:02:59.5]}
2... d5 {[%clk 0:02:00.2]} 3. exd5 {[%clk 0:02:59.3]} 3... exd5 {[%clk
0:02:00.9]} 4. Nf3 {[%clk 0:02:59.4]} 4... Nf6 {[%clk 0:02:01.5]} 5. d4 {[%clk
0:02:59.2]} 5... Bd6 {[%clk 0:02:02]} 6. c3 {[%clk 0:02:59.1]} 6... O-O {[%clk
0:02:02.3]} 7. Be2 {[%clk 0:02:58.5]} 7... Bf5 {[%clk 0:02:01.4]} 8. O-O {[%clk
0:02:58.3]} 8... Nc6 {[%clk 0:02:01]} 9. Ne5 {[%clk 0:02:58.4]} 9... Ne4 {[%clk
0:01:55.2]} 10. Nd2 {[%clk 0:02:57.9]} 10... f6 {[%clk 0:01:53.7]} 11. Nxc6
{[%clk 0:02:57.1]} 11... bxc6 {[%clk 0:01:53.7]} 12. Nxe4 {[%clk 0:02:57.4]}
12... Bxe4 {[%clk 0:01:53.3]} 13. Be3 {[%clk 0:02:57]} 13... Re8 {[%clk
0:01:52.5]} 14. Qd2 {[%clk 0:02:54.9]} 14... Qe7 {[%clk 0:01:52.3]} 15. Bf3
{[%clk 0:02:50.6]} 15... Qf7 {[%clk 0:01:39.1]} 16. Rae1 {[%clk 0:02:49]} 16...
Re7 {[%clk 0:01:34.6]} 17. b4 {[%clk 0:02:47.5]} 17... Rae8 {[%clk 0:01:34]} 18.
Bxe4 {[%clk 0:02:28.9]} 18... Rxe4 {[%clk 0:01:33.1]} 19. g3 {[%clk 0:02:27.3]}
19... R8e7 {[%clk 0:01:30.3]} 20. Bf2 {[%clk 0:02:26.7]} 20... Rxe1 {[%clk
0:01:28.8]} 21. Rxe1 {[%clk 0:02:26.5]} 21... Rxe1+ {[%clk 0:01:28.9]} 22. Qxe1
{[%clk 0:02:26.5]} 22... Qe7 {[%clk 0:01:29.8]} 23. Qxe7 {[%clk 0:02:20.7]}
23... Bxe7 {[%clk 0:01:29.7]} 24. f5 {[%clk 0:02:21]} 24... Bd6 {[%clk
0:01:29.6]} 25. g4 {[%clk 0:02:20.8]} 25... Kf7 {[%clk 0:01:30]} 26. h3 {[%clk
0:02:21.1]} 26... h6 {[%clk 0:01:30.4]} 27. Kg2 {[%clk 0:02:21.3]} 27... Bf4
{[%clk 0:01:29.9]} 28. Be1 {[%clk 0:02:20.2]} 28... Ke7 {[%clk 0:01:25.1]} 29.
Kf3 {[%clk 0:02:20.4]} 29... Bd6 {[%clk 0:01:23.5]} 30. Ke2 {[%clk 0:02:19.2]}
30... Kf7 {[%clk 0:01:22.1]} 31. Kd3 {[%clk 0:02:17.3]} 31... Bf4 {[%clk
0:01:18.1]} 32. c4 {[%clk 0:02:17.1]} 32... Ke7 {[%clk 0:01:15.5]} 33. a4 {[%clk
0:02:16.6]} 33... Kd6 {[%clk 0:01:14.7]} 34. b5 {[%clk 0:02:12.9]} 34... cxb5
{[%clk 0:01:14.4]} 35. axb5 {[%clk 0:02:12.8]} 35... c5 {[%clk 0:01:12]} 36.
dxc5+ {[%clk 0:02:07.3]} 36... Kxc5 {[%clk 0:01:08.1]} 37. Bf2+ {[%clk
0:02:07.5]} 37... Kd6 {[%clk 0:01:03.2]} 38. Bxa7 {[%clk 0:02:07.3]} 38... dxc4+
{[%clk 0:00:53.3]} 39. Kxc4 {[%clk 0:02:06.7]} 39... Kc7 {[%clk 0:00:52.3]} 40.
Bc5 {[%clk 0:02:05.6]} 40... Bg5 {[%clk 0:00:39.5]} 41. Bf8 {[%clk 0:02:04.9]}
41... Kb6 {[%clk 0:00:38.8]} 42. Bxg7 {[%clk 0:02:03.4]} 42... Kc7 {[%clk
0:00:35.8]} 43. Bf8 {[%clk 0:01:56.1]} 43... Kb6 {[%clk 0:00:31.9]} 44. Bc5+
{[%clk 0:01:56]} 44... Kc7 {[%clk 0:00:32]} 45. Kd5 {[%clk 0:01:56.3]} 45... Bf4
{[%clk 0:00:28.8]} 46. Ke6 {[%clk 0:01:56.3]} 46... Bg5 {[%clk 0:00:25.3]} 47.
Bd4 {[%clk 0:01:55]} 47... Bf4 {[%clk 0:00:22.3]} 48. Kxf6 {[%clk 0:01:53.1]}
48... Bg5+ {[%clk 0:00:20.8]} 49. Kg6 {[%clk 0:01:53]} 49... Kd7 {[%clk
0:00:20.4]} 50. f6 {[%clk 0:01:47.5]} 50... Ke6 {[%clk 0:00:20.3]} 51. f7 {[%clk
0:01:47.8]} 51... Be7 {[%clk 0:00:20.3]} 52. b6 {[%clk 0:01:44.9]} 52... Bd6
{[%clk 0:00:20.4]} 53. b7 {[%clk 0:01:43.9]} 53... Ke7 {[%clk 0:00:19.5]} 54.
b8=Q {[%clk 0:01:40.5]} 54... Bxb8 {[%clk 0:00:19.2]} 55. Bc5+ {[%clk
0:01:40.8]} 55... Ke6 {[%clk 0:00:18.3]} 56. f8=Q {[%clk 0:01:40.2]} 56... Be5
{[%clk 0:00:17.2]} 57. Qe7+ {[%clk 0:01:40]} 57... Kd5 {[%clk 0:00:17.3]} 58.
Be3 {[%clk 0:01:39.3]} 58... h5 {[%clk 0:00:15.5]} 59. gxh5 {[%clk 0:01:38.8]}
59... Bg3 {[%clk 0:00:15.4]} 60. h6 {[%clk 0:01:34.6]} 1-0

[Event "Betsys MČR v online bleskovém šachu 2021"]
[Site "Chess.com"]
[Date "2021.04.17"]
[Round "7"]
[White "lockerbieQ"]
[Black "jarda1955"]
[Result "0-1"]
[WhiteElo "1734"]
[BlackElo "1994"]
[TimeControl "180+1"]
[EndTime "10:11:25 PDT"]
[Termination "Uživatel jarda1955 zvítězil po vzdání soupeře"]

1. e4 {[%clk 0:02:57.8]} 1... c5 {[%clk 0:02:59.4]} 2. Nf3 {[%clk 0:02:57.9]}
2... d6 {[%clk 0:02:59.5]} 3. d4 {[%clk 0:02:58.1]} 3... cxd4 {[%clk 0:02:59.6]}
4. Nxd4 {[%clk 0:02:58.4]} 4... Nf6 {[%clk 0:03:00.2]} 5. Nc3 {[%clk 0:02:58.6]}
5... a6 {[%clk 0:03:00.6]} 6. Be3 {[%clk 0:02:58.4]} 6... e5 {[%clk 0:03:00]} 7.
Nb3 {[%clk 0:02:58]} 7... Be7 {[%clk 0:02:59.1]} 8. f3 {[%clk 0:02:57.7]} 8...
h5 {[%clk 0:02:54.2]} 9. Qd2 {[%clk 0:02:54.6]} 9... Be6 {[%clk 0:02:53.6]} 10.
Nd5 {[%clk 0:02:52.7]} 10... Nxd5 {[%clk 0:02:48.1]} 11. exd5 {[%clk 0:02:52.4]}
11... Bf5 {[%clk 0:02:47.6]} 12. O-O-O {[%clk 0:02:49.5]} 12... Nd7 {[%clk
0:02:45.5]} 13. Bd3 {[%clk 0:02:48.4]} 13... Bxd3 {[%clk 0:02:43]} 14. Qxd3
{[%clk 0:02:48.2]} 14... Rc8 {[%clk 0:02:33.6]} 15. Kb1 {[%clk 0:02:47.9]} 15...
Qc7 {[%clk 0:02:33]} 16. f4 {[%clk 0:02:14]} 16... Qc4 {[%clk 0:02:23.8]} 17.
Qd2 {[%clk 0:01:43.1]} 17... O-O {[%clk 0:02:08.7]} 18. Rhg1 {[%clk 0:01:34.9]}
18... exf4 {[%clk 0:02:02.1]} 19. Bxf4 {[%clk 0:01:34.5]} 19... Nf6 {[%clk
0:01:57.3]} 20. c3 {[%clk 0:00:39.6]} 20... Rfe8 {[%clk 0:01:52.7]} 21. Rgf1
{[%clk 0:00:23.2]} 21... Ne4 {[%clk 0:01:48]} 22. Qd3 {[%clk 0:00:18.9]} 22...
Bf8 {[%clk 0:01:38.6]} 23. Qxc4 {[%clk 0:00:18.6]} 23... Rxc4 {[%clk 0:01:37]}
24. Nd4 {[%clk 0:00:17.6]} 24... g6 {[%clk 0:01:26.3]} 25. h3 {[%clk 0:00:16.4]}
25... Rcc8 {[%clk 0:01:25.4]} 26. g4 {[%clk 0:00:16.2]} 26... hxg4 {[%clk
0:01:23.9]} 27. hxg4 {[%clk 0:00:16.5]} 27... Nc5 {[%clk 0:01:23.1]} 28. Bg3
{[%clk 0:00:11.4]} 28... Re4 {[%clk 0:01:19.6]} 29. g5 {[%clk 0:00:07.6]} 29...
Rg4 {[%clk 0:01:17.5]} 30. Bf4 {[%clk 0:00:07]} 30... Re8 {[%clk 0:01:13.1]} 31.
Bc1 {[%clk 0:00:05.5]} 31... Re5 {[%clk 0:01:08.2]} 32. Rf2 {[%clk 0:00:05.1]}
32... Ne4 {[%clk 0:00:54.4]} 33. Rh2 {[%clk 0:00:02.5]} 33... Nxg5 {[%clk
0:00:49.6]} 34. Rdh1 {[%clk 0:00:02.7]} 34... Bg7 {[%clk 0:00:49.3]} 35. Nf3
{[%clk 0:00:02]} 35... Nxf3 {[%clk 0:00:46.9]} 0-1

[Event "Betsys MČR v online bleskovém šachu 2021"]
[Site "Chess.com"]
[Date "2021.04.17"]
[Round "7"]
[White "jachym08"]
[Black "Varinius"]
[Result "1-0"]
[WhiteElo "2236"]
[BlackElo "2421"]
[TimeControl "180+1"]
[EndTime "10:11:26 PDT"]
[Termination "Uživatel jachym08 zvítězil po vzdání soupeře"]

1. d4 {[%clk 0:03:00.9]} 1... Nf6 {[%clk 0:02:59.3]} 2. c4 {[%clk 0:03:00.1]}
2... c5 {[%clk 0:02:59.4]} 3. d5 {[%clk 0:02:58.6]} 3... b5 {[%clk 0:02:59.9]}
4. cxb5 {[%clk 0:02:57.6]} 4... a6 {[%clk 0:03:00.4]} 5. Nc3 {[%clk 0:02:57.2]}
5... axb5 {[%clk 0:02:59.7]} 6. e4 {[%clk 0:02:56.7]} 6... b4 {[%clk 0:03:00]}
7. Nb5 {[%clk 0:02:56.7]} 7... d6 {[%clk 0:02:59.1]} 8. Bf4 {[%clk 0:02:54]}
8... g5 {[%clk 0:02:58.6]} 9. Bxg5 {[%clk 0:02:46.5]} 9... Nxe4 {[%clk
0:02:58.2]} 10. Bf4 {[%clk 0:02:39.2]} 10... Bf5 {[%clk 0:02:12.1]} 11. Bd3
{[%clk 0:02:16.8]} 11... Qb6 {[%clk 0:01:26.7]} 12. Qe2 {[%clk 0:01:32.2]} 12...
c4 {[%clk 0:01:19.5]} 13. Bxe4 {[%clk 0:01:28.3]} 13... Bxe4 {[%clk 0:01:18.9]}
14. Nxd6+ {[%clk 0:01:27.2]} 14... exd6 {[%clk 0:01:11.8]} 15. Qxe4+ {[%clk
0:01:26.8]} 15... Kd8 {[%clk 0:01:01.6]} 16. Nf3 {[%clk 0:01:21.5]} 16... Nd7
{[%clk 0:01:01]} 17. O-O {[%clk 0:01:19.2]} 17... Rg8 {[%clk 0:00:59]} 18. Qxh7
{[%clk 0:01:14.5]} 18... Rg7 {[%clk 0:00:48.7]} 19. Qh4+ {[%clk 0:01:05.8]}
19... Kc7 {[%clk 0:00:47.4]} 20. Rac1 {[%clk 0:00:59.2]} 20... Nc5 {[%clk
0:00:38.6]} 21. Rxc4 {[%clk 0:00:56.9]} 21... Rxa2 {[%clk 0:00:37.5]} 22. Rxc5+
{[%clk 0:00:46.9]} 22... Qxc5 {[%clk 0:00:36.4]} 23. Rc1 {[%clk 0:00:46.9]}
23... Qxc1+ {[%clk 0:00:25.9]} 24. Bxc1 {[%clk 0:00:47.8]} 24... Ra1 {[%clk
0:00:26.4]} 25. Qc4+ {[%clk 0:00:47.7]} 25... Kd7 {[%clk 0:00:25]} 26. Qc6+
{[%clk 0:00:47.5]} 26... Ke7 {[%clk 0:00:23.9]} 27. g3 {[%clk 0:00:43.1]} 27...
Kf6 {[%clk 0:00:18]} 28. Kg2 {[%clk 0:00:42]} 28... Be7 {[%clk 0:00:18.2]} 29.
Qc7 {[%clk 0:00:38.1]} 29... Bf8 {[%clk 0:00:07.9]} 30. Be3 {[%clk 0:00:34.5]}
30... Ra8 {[%clk 0:00:06.3]} 31. Bd4+ {[%clk 0:00:34.4]} 1-0

[Event "Betsys MČR v online bleskovém šachu 2021"]
[Site "Chess.com"]
[Date "2021.04.17"]
[Round "7"]
[White "BRNOTEACHER"]
[Black "Dasty78"]
[Result "1-0"]
[WhiteElo "2340"]
[BlackElo "2015"]
[TimeControl "180+1"]
[EndTime "10:11:26 PDT"]
[Termination "Uživatel BRNOTEACHER zvítězil po vzdání soupeře"]

1. d4 {[%clk 0:03:00.9]} 1... Nf6 {[%clk 0:02:58.1]} 2. c4 {[%clk 0:02:59.6]}
2... c5 {[%clk 0:02:57.5]} 3. d5 {[%clk 0:02:59.2]} 3... e6 {[%clk 0:02:56]} 4.
Nc3 {[%clk 0:02:58.5]} 4... exd5 {[%clk 0:02:54.9]} 5. cxd5 {[%clk 0:02:59.4]}
5... d6 {[%clk 0:02:55]} 6. e4 {[%clk 0:02:59.2]} 6... g6 {[%clk 0:02:54.9]} 7.
f4 {[%clk 0:02:59.3]} 7... Bg7 {[%clk 0:02:54.2]} 8. Bb5+ {[%clk 0:02:59.3]}
8... Nfd7 {[%clk 0:02:54.2]} 9. Bd3 {[%clk 0:02:58.9]} 9... O-O {[%clk
0:02:51.9]} 10. Nf3 {[%clk 0:02:58.7]} 10... Na6 {[%clk 0:02:52]} 11. O-O {[%clk
0:02:55.9]} 11... Nc7 {[%clk 0:02:51.7]} 12. f5 {[%clk 0:02:11.9]} 12... Ne5
{[%clk 0:02:42.2]} 13. Nxe5 {[%clk 0:01:59.5]} 13... Bxe5 {[%clk 0:02:41.8]} 14.
Bf4 {[%clk 0:01:59.5]} 14... f6 {[%clk 0:02:24.5]} 15. fxg6 {[%clk 0:01:51.5]}
15... hxg6 {[%clk 0:02:24.2]} 16. Bxe5 {[%clk 0:01:51.4]} 16... fxe5 {[%clk
0:02:22.8]} 17. Rxf8+ {[%clk 0:01:50.1]} 17... Qxf8 {[%clk 0:02:22.3]} 18. Qd2
{[%clk 0:01:48.1]} 18... Qg7 {[%clk 0:02:07.6]} 19. Rf1 {[%clk 0:01:20.3]} 19...
Bd7 {[%clk 0:02:06.8]} 20. Qg5 {[%clk 0:01:16.7]} 20... Rf8 {[%clk 0:01:39.7]}
21. Rxf8+ {[%clk 0:01:15.1]} 21... Kxf8 {[%clk 0:01:39.1]} 22. Qd8+ {[%clk
0:01:14]} 22... Ne8 {[%clk 0:01:35.3]} 23. Nb5 {[%clk 0:01:05.7]} 23... Bxb5
{[%clk 0:01:06.2]} 24. Bxb5 {[%clk 0:01:06.6]} 24... Qe7 {[%clk 0:01:04.9]} 25.
Qb8 {[%clk 0:00:39.6]} 25... a6 {[%clk 0:00:34.8]} 26. Bxe8 {[%clk 0:00:38.2]}
26... Qxe8 {[%clk 0:00:34.8]} 27. Qxd6+ {[%clk 0:00:38.1]} 27... Qe7 {[%clk
0:00:33.1]} 28. Qxg6 {[%clk 0:00:37.4]} 28... c4 {[%clk 0:00:32.3]} 29. Qb6
{[%clk 0:00:27.9]} 29... Qh4 {[%clk 0:00:26.6]} 30. Qf2+ {[%clk 0:00:27.3]}
30... Qxf2+ {[%clk 0:00:20.7]} 31. Kxf2 {[%clk 0:00:28.2]} 31... b5 {[%clk
0:00:19.9]} 32. Ke3 {[%clk 0:00:28]} 32... a5 {[%clk 0:00:18.7]} 33. Kd2 {[%clk
0:00:27.9]} 33... b4 {[%clk 0:00:18.7]} 34. Kc2 {[%clk 0:00:27]} 1-0

[Event "Betsys MČR v online bleskovém šachu 2021"]
[Site "Chess.com"]
[Date "2021.04.17"]
[Round "7"]
[White "Ehlundi"]
[Black "Marcus_Aurelius_CZ"]
[Result "1-0"]
[WhiteElo "1759"]
[BlackElo "1406"]
[TimeControl "180+1"]
[EndTime "10:11:26 PDT"]
[Termination "Uživatel Ehlundi zvítězil na čas"]

1. e4 {[%clk 0:03:00.9]} 1... e6 {[%clk 0:02:59.8]} 2. Nf3 {[%clk 0:03:00.9]}
2... d5 {[%clk 0:03:00.2]} 3. exd5 {[%clk 0:03:01.4]} 3... exd5 {[%clk
0:03:00.3]} 4. d4 {[%clk 0:03:01.7]} 4... Nc6 {[%clk 0:03:00]} 5. Bd3 {[%clk
0:03:01.5]} 5... Bd6 {[%clk 0:02:58.8]} 6. O-O {[%clk 0:03:01.4]} 6... Nge7
{[%clk 0:02:58.5]} 7. Bg5 {[%clk 0:03:01.2]} 7... f6 {[%clk 0:02:57.7]} 8. Bh4
{[%clk 0:03:00.9]} 8... Bg4 {[%clk 0:02:58.1]} 9. h3 {[%clk 0:02:57.9]} 9... Bh5
{[%clk 0:02:56.7]} 10. c3 {[%clk 0:02:57.4]} 10... Qd7 {[%clk 0:02:56.1]} 11.
Nbd2 {[%clk 0:02:50.2]} 11... O-O-O {[%clk 0:02:55.5]} 12. Bb5 {[%clk
0:02:46.7]} 12... g5 {[%clk 0:02:52.6]} 13. Bg3 {[%clk 0:02:45.8]} 13... Bxg3
{[%clk 0:02:49.4]} 14. fxg3 {[%clk 0:02:45.9]} 14... g4 {[%clk 0:02:49]} 15.
hxg4 {[%clk 0:02:33.8]} 15... Bxg4 {[%clk 0:02:45.7]} 16. Qe2 {[%clk 0:02:18.6]}
16... Rdg8 {[%clk 0:02:36.9]} 17. Rae1 {[%clk 0:02:12.5]} 17... Re8 {[%clk
0:01:45]} 18. Qf2 {[%clk 0:01:54.9]} 18... f5 {[%clk 0:01:32.9]} 19. Ne5 {[%clk
0:01:52.4]} 19... Qd6 {[%clk 0:01:22.2]} 20. Nf7 {[%clk 0:01:51.3]} 20... Qg6
{[%clk 0:01:17.8]} 21. Nxh8 {[%clk 0:01:47.6]} 21... Rxh8 {[%clk 0:01:14.2]} 22.
Nf3 {[%clk 0:01:32.1]} 22... h5 {[%clk 0:01:03.8]} 23. Nh4 {[%clk 0:01:31.6]}
23... Qd6 {[%clk 0:00:47]} 24. Qf4 {[%clk 0:01:26.8]} 24... Qd7 {[%clk
0:00:32.3]} 25. Bxc6 {[%clk 0:01:04.7]} 25... Nxc6 {[%clk 0:00:30]} 26. Re3
{[%clk 0:00:55.6]} 26... Ne7 {[%clk 0:00:20.4]} 27. Rfe1 {[%clk 0:00:54]} 27...
Re8 {[%clk 0:00:19.2]} 28. Qe5 {[%clk 0:00:48.2]} 28... Kd8 {[%clk 0:00:18.3]}
29. Qf6 {[%clk 0:00:47.6]} 29... f4 {[%clk 0:00:11.8]} 30. Re5 {[%clk
0:00:42.3]} 30... fxg3 {[%clk 0:00:09.7]} 31. Ng6 {[%clk 0:00:41.1]} 31... Kc8
{[%clk 0:00:03.3]} 32. Nxe7+ {[%clk 0:00:41.1]} 32... Rxe7 {[%clk 0:00:02.3]}
33. Rxe7 {[%clk 0:00:39.6]} 1-0

[Event "Betsys MČR v online bleskovém šachu 2021"]
[Site "Chess.com"]
[Date "2021.04.17"]
[Round "7"]
[White "horalek"]
[Black "rakintsev"]
[Result "0-1"]
[WhiteElo "1345"]
[BlackElo "1745"]
[TimeControl "180+1"]
[EndTime "10:11:26 PDT"]
[Termination "Uživatel rakintsev zvítězil matem"]

1. d4 {[%clk 0:02:58.5]} 1... d5 {[%clk 0:02:58.7]} 2. Bf4 {[%clk 0:02:57.9]}
2... Nf6 {[%clk 0:02:55.9]} 3. e3 {[%clk 0:02:57.3]} 3... c6 {[%clk 0:02:55.7]}
4. c3 {[%clk 0:02:56.2]} 4... Bf5 {[%clk 0:02:55.5]} 5. Bd3 {[%clk 0:02:54.6]}
5... Bg6 {[%clk 0:02:53.8]} 6. Nf3 {[%clk 0:02:52.1]} 6... e6 {[%clk 0:02:52.9]}
7. O-O {[%clk 0:02:48.7]} 7... Be7 {[%clk 0:02:46.2]} 8. h3 {[%clk 0:02:43.4]}
8... Qb6 {[%clk 0:02:44.9]} 9. Bxg6 {[%clk 0:02:38.3]} 9... hxg6 {[%clk
0:02:40.8]} 10. Qc2 {[%clk 0:02:35.3]} 10... Ne4 {[%clk 0:02:37.7]} 11. Nbd2
{[%clk 0:02:32.1]} 11... f5 {[%clk 0:02:30.6]} 12. Ne5 {[%clk 0:02:27.8]} 12...
g5 {[%clk 0:02:24.1]} 13. Bh2 {[%clk 0:02:21.7]} 13... Nf6 {[%clk 0:02:10.3]}
14. Rab1 {[%clk 0:02:07.6]} 14... Nbd7 {[%clk 0:02:00.7]} 15. Ng6 {[%clk
0:02:02.5]} 15... Rh6 {[%clk 0:01:52.4]} 16. Nxe7 {[%clk 0:01:58.4]} 16... Kxe7
{[%clk 0:01:51.9]} 17. f4 {[%clk 0:01:56.6]} 17... g4 {[%clk 0:01:50.2]} 18. g3
{[%clk 0:01:40.7]} 18... Rxh3 {[%clk 0:01:47.9]} 19. Rf2 {[%clk 0:01:36]} 19...
Rah8 {[%clk 0:01:45.7]} 20. c4 {[%clk 0:01:23.7]} 20... a6 {[%clk 0:01:22.6]}
21. c5 {[%clk 0:01:15.4]} 21... Qd8 {[%clk 0:01:08.1]} 22. Re1 {[%clk
0:01:04.2]} 22... Qa5 {[%clk 0:01:02]} 23. b3 {[%clk 0:00:57.8]} 23... Ne4
{[%clk 0:00:45.5]} 24. Nxe4 {[%clk 0:00:55.5]} 24... Qxe1+ {[%clk 0:00:44.1]}
25. Rf1 {[%clk 0:00:45.5]} 25... Qxe3+ {[%clk 0:00:43.3]} 26. Qf2 {[%clk
0:00:28.1]} 26... Qxe4 {[%clk 0:00:40.8]} 27. Re1 {[%clk 0:00:24.9]} 27... Qf3
{[%clk 0:00:28.7]} 28. Qxf3 {[%clk 0:00:21.7]} 28... gxf3 {[%clk 0:00:27.3]} 29.
Rf1 {[%clk 0:00:18.3]} 29... Rxh2 {[%clk 0:00:26.7]} 30. a3 {[%clk 0:00:12.5]}
30... Rg2# {[%clk 0:00:23.8]} 0-1

[Event "Betsys MČR v online bleskovém šachu 2021"]
[Site "Chess.com"]
[Date "2021.04.17"]
[Round "7"]
[White "jonasstach"]
[Black "Zavurka1975"]
[Result "1/2-1/2"]
[WhiteElo "2013"]
[BlackElo "2207"]
[TimeControl "180+1"]
[EndTime "10:11:27 PDT"]
[Termination "Remíza opakováním pozice"]

1. d4 {[%clk 0:02:58.7]} 1... Nf6 {[%clk 0:02:47.5]} 2. Bf4 {[%clk 0:02:58.3]}
2... d6 {[%clk 0:02:47.1]} 3. c3 {[%clk 0:02:57.4]} 3... Nbd7 {[%clk 0:02:47.1]}
4. Nf3 {[%clk 0:02:53.7]} 4... g6 {[%clk 0:02:45.4]} 5. e3 {[%clk 0:02:53.8]}
5... Bg7 {[%clk 0:02:45.5]} 6. Be2 {[%clk 0:02:52.9]} 6... O-O {[%clk
0:02:45.2]} 7. O-O {[%clk 0:02:52.7]} 7... b6 {[%clk 0:02:44]} 8. h3 {[%clk
0:02:52.2]} 8... Bb7 {[%clk 0:02:44]} 9. Nbd2 {[%clk 0:02:50.4]} 9... Ne4 {[%clk
0:02:44]} 10. Nxe4 {[%clk 0:02:45.8]} 10... Bxe4 {[%clk 0:02:43.5]} 11. Nd2
{[%clk 0:02:45.5]} 11... Bb7 {[%clk 0:02:43.1]} 12. a4 {[%clk 0:02:41.2]} 12...
e5 {[%clk 0:02:39.7]} 13. Bg3 {[%clk 0:02:39.3]} 13... a6 {[%clk 0:02:35]} 14.
Bf3 {[%clk 0:02:35.4]} 14... Qc8 {[%clk 0:02:16.6]} 15. Bxb7 {[%clk 0:02:33.9]}
15... Qxb7 {[%clk 0:02:16.4]} 16. Qf3 {[%clk 0:02:34.3]} 16... Qxf3 {[%clk
0:02:13.7]} 17. Nxf3 {[%clk 0:02:35.2]} 17... Rfe8 {[%clk 0:02:13.4]} 18. dxe5
{[%clk 0:02:28.9]} 18... Nxe5 {[%clk 0:02:07.6]} 19. Nxe5 {[%clk 0:02:26.4]}
19... Bxe5 {[%clk 0:02:03.5]} 20. Bxe5 {[%clk 0:02:24.2]} 20... dxe5 {[%clk
0:02:03.3]} 21. Rfd1 {[%clk 0:02:24]} 21... Rad8 {[%clk 0:02:03.1]} 22. Kf1
{[%clk 0:02:24.3]} 22... Kf8 {[%clk 0:02:02.7]} 23. Ke2 {[%clk 0:02:22.4]} 23...
Ke7 {[%clk 0:02:02.5]} 24. g4 {[%clk 0:02:13.5]} 24... f5 {[%clk 0:01:56.6]} 25.
c4 {[%clk 0:01:59.8]} 25... a5 {[%clk 0:01:30.4]} 26. Rac1 {[%clk 0:01:55.9]}
26... c5 {[%clk 0:01:25.3]} 27. gxf5 {[%clk 0:01:42.4]} 27... gxf5 {[%clk
0:01:24.5]} 28. Rg1 {[%clk 0:01:41.8]} 28... Rg8 {[%clk 0:01:20.5]} 29. Rcd1
{[%clk 0:01:41]} 29... Rxg1 {[%clk 0:01:13.7]} 30. Rxg1 {[%clk 0:01:41.9]} 30...
Kf6 {[%clk 0:01:05.3]} 31. h4 {[%clk 0:01:35.3]} 31... e4 {[%clk 0:00:54.9]} 32.
f3 {[%clk 0:01:17.1]} 32... exf3+ {[%clk 0:00:47.6]} 33. Kxf3 {[%clk 0:01:18]}
33... Rd2 {[%clk 0:00:47.1]} 34. Rg2 {[%clk 0:00:34.5]} 34... Rxg2 {[%clk
0:00:42.7]} 35. Kxg2 {[%clk 0:00:35.4]} 35... Ke5 {[%clk 0:00:42.1]} 36. Kf3
{[%clk 0:00:35.9]} 36... h5 {[%clk 0:00:40.6]} 37. b3 {[%clk 0:00:34.9]} 37...
Ke6 {[%clk 0:00:37.6]} 38. Kf4 {[%clk 0:00:35.3]} 38... Kf6 {[%clk 0:00:37.3]}
39. e4 {[%clk 0:00:35.3]} 39... fxe4 {[%clk 0:00:36.4]} 40. Kxe4 {[%clk
0:00:36.2]} 40... Ke6 {[%clk 0:00:36.5]} 41. Kf4 {[%clk 0:00:34.5]} 41... Kf6
{[%clk 0:00:36.5]} 42. Ke4 {[%clk 0:00:34.6]} 42... Ke6 {[%clk 0:00:36.6]} 43.
Kf4 {[%clk 0:00:32.1]} 43... Kf6 {[%clk 0:00:35.8]} 44. Ke4 {[%clk 0:00:31.7]}
1/2-1/2

[Event "Betsys MČR v online bleskovém šachu 2021"]
[Site "Chess.com"]
[Date "2021.04.17"]
[Round "7"]
[White "BrunoT2"]
[Black "kubajss"]
[Result "0-1"]
[WhiteElo "1144"]
[BlackElo "891"]
[TimeControl "180+1"]
[EndTime "10:11:28 PDT"]
[Termination "Uživatel kubajss zvítězil po vzdání soupeře"]

1. e4 {[%clk 0:03:00.9]} 1... e5 {[%clk 0:02:59.9]} 2. Nf3 {[%clk 0:03:00.4]}
2... Nc6 {[%clk 0:03:00.1]} 3. Bc4 {[%clk 0:02:59.9]} 3... Bc5 {[%clk 0:02:58]}
4. Nc3 {[%clk 0:02:57.9]} 4... d6 {[%clk 0:02:57.5]} 5. d3 {[%clk 0:02:55.7]}
5... Bg4 {[%clk 0:02:55.5]} 6. h3 {[%clk 0:02:55.2]} 6... Bh5 {[%clk 0:02:51.3]}
7. O-O {[%clk 0:02:54.9]} 7... Nf6 {[%clk 0:02:39.2]} 8. Bg5 {[%clk 0:02:48.4]}
8... h6 {[%clk 0:02:36.1]} 9. Bh4 {[%clk 0:02:46.4]} 9... g5 {[%clk 0:02:33.9]}
10. Bg3 {[%clk 0:02:41.3]} 10... g4 {[%clk 0:02:23.2]} 11. hxg4 {[%clk
0:02:31.4]} 11... Nxg4 {[%clk 0:02:13.2]} 12. Bh4 {[%clk 0:02:22.3]} 12... f6
{[%clk 0:02:07.7]} 13. Be6 {[%clk 0:02:05.5]} 13... Qe7 {[%clk 0:02:00.3]} 14.
Bxg4 {[%clk 0:01:58.9]} 14... Bxg4 {[%clk 0:02:00.4]} 15. Nd5 {[%clk 0:01:55.7]}
15... Qg7 {[%clk 0:01:48.6]} 16. Bxf6 {[%clk 0:01:52.1]} 16... Qg6 {[%clk
0:01:04.2]} 17. Bxh8 {[%clk 0:01:41.8]} 17... O-O-O {[%clk 0:01:01]} 18. Bf6
{[%clk 0:01:31.4]} 18... Rg8 {[%clk 0:00:44]} 19. Ne7+ {[%clk 0:01:06.1]} 19...
Nxe7 {[%clk 0:00:42.3]} 20. Bxe7 {[%clk 0:01:05.3]} 20... Bh3 {[%clk 0:00:39.9]}
21. g3 {[%clk 0:00:52.7]} 21... Bxf1 {[%clk 0:00:39.4]} 22. Kxf1 {[%clk
0:00:50.3]} 22... Bxf2 {[%clk 0:00:35.4]} 23. Kxf2 {[%clk 0:00:40.7]} 23...
Qxg3+ {[%clk 0:00:35.8]} 24. Ke3 {[%clk 0:00:28.2]} 24... Qf4+ {[%clk
0:00:28.5]} 25. Ke2 {[%clk 0:00:21.6]} 25... Rg2+ {[%clk 0:00:24]} 26. Ke1
{[%clk 0:00:16.5]} 26... Qe3+ {[%clk 0:00:20.3]} 0-1